[Event "Titled Tuesday Blitz August 15 Early 2023"]
[White "Kiselev, Pavel"]
[Black "Berezin, Viktor"]
[WhiteFideId "4191102"]
[BlackFideId "14107872"]
[WhiteElo "2327"]
[BlackElo "2505"]
[Result "0-1"]
[Round "5"]
[TimeControl "180+1"]
[Date "2023.08.15"]
[WhiteClock "0:00:20"]
[BlackClock "0:00:10"]
[Board "128"]

1. Nf3 {[%clk 0:03:00]}  Nf6 {[%clk 0:02:51]} 2. c4 {[%clk 0:03:01]}  e6 {[%clk 0:02:47]} 3. d4 {[%clk 0:03:01]}  b6 {[%clk 0:02:46]} 4. Nc3 {[%clk 0:03:00]}  Bb7 {[%clk 0:02:47]} 5. e3 {[%clk 0:02:59]}  g6 {[%clk 0:02:47]} 6. Bd3 {[%clk 0:03:00]}  Bg7 {[%clk 0:02:48]} 7. O-O {[%clk 0:03:00]}  O-O {[%clk 0:02:49]} 8. e4 {[%clk 0:02:59]}  d6 {[%clk 0:02:49]} 9. d5 {[%clk 0:02:59]}  e5 {[%clk 0:02:48]} 10. Ne1 {[%clk 0:02:59]}  Nbd7 {[%clk 0:02:46]} 11. f4 {[%clk 0:02:59]}  exf4 {[%clk 0:02:46]} 12. Bxf4 {[%clk 0:03:00]}  Nh5 {[%clk 0:02:46]} 13. Be3 {[%clk 0:03:00]}  a5 {[%clk 0:02:44]} 14. Nf3 {[%clk 0:02:59]}  Nc5 {[%clk 0:02:44]} 15. Bc2 {[%clk 0:02:58]}  Bc8 {[%clk 0:02:42]} 16. Bd4 {[%clk 0:02:50]}  Bd7 {[%clk 0:02:41]} 17. Bxg7 {[%clk 0:02:49]}  Nxg7 {[%clk 0:02:42]} 18. a3 {[%clk 0:02:41]}  a4 {[%clk 0:02:31]} 19. e5 {[%clk 0:02:41]}  Bf5 {[%clk 0:02:20]} 20. exd6 {[%clk 0:02:35]}  cxd6 {[%clk 0:02:19]} 21. Nd4 {[%clk 0:02:32]}  Bxc2 {[%clk 0:02:17]} 22. Qxc2 {[%clk 0:02:33]}  Qh4 {[%clk 0:02:14]} 23. Qf2 {[%clk 0:02:13]}  Qh6 {[%clk 0:02:01]} 24. Qf3 {[%clk 0:02:00]}  Rae8 {[%clk 0:01:54]} 25. Rae1 {[%clk 0:01:57]}  Rxe1 {[%clk 0:01:51]} 26. Rxe1 {[%clk 0:01:58]}  Qd2 {[%clk 0:01:52]} 27. Qe3 {[%clk 0:01:51]}  Qxb2 {[%clk 0:01:43]} 28. Ncb5 {[%clk 0:01:51]}  Re8 {[%clk 0:01:34]} 29. Qc1 {[%clk 0:01:41]}  Nd3 {[%clk 0:01:05]} 30. Rxe8+ {[%clk 0:01:38]}  Nxe8 {[%clk 0:01:06]} 31. Qf1 {[%clk 0:01:34]}  Qd2 {[%clk 0:00:49]} 32. Kh1 {[%clk 0:01:15]}  Qe3 {[%clk 0:00:45]} 33. h3 {[%clk 0:01:10]}  Nf2+ {[%clk 0:00:43]} 34. Kh2 {[%clk 0:01:10]}  Nf6 {[%clk 0:00:36]} 35. Nc2 {[%clk 0:01:06]}  Qd2 {[%clk 0:00:34]} 36. Nbd4 {[%clk 0:01:00]}  N6e4 {[%clk 0:00:31]} 37. Qe1 {[%clk 0:00:57]}  Qf4+ {[%clk 0:00:29]} 38. Kg1 {[%clk 0:00:57]}  Qg5 {[%clk 0:00:15]} 39. Qe3 {[%clk 0:00:55]}  Qf6 {[%clk 0:00:15]} 40. Qf3 {[%clk 0:00:53]}  Qe5 {[%clk 0:00:14]} 41. Nc6 {[%clk 0:00:42]}  Qb2 {[%clk 0:00:11]} 42. Qe2 {[%clk 0:00:30]}  Qb1+ {[%clk 0:00:09]} 43. Ne1 {[%clk 0:00:30]}  Nd3 {[%clk 0:00:06]} 44. Qxd3 {[%clk 0:00:23]}  Qxe1+ {[%clk 0:00:06]} 45. Qf1 {[%clk 0:00:24]}  Qe3+ {[%clk 0:00:05]} 46. Kh2 {[%clk 0:00:21]}  Nf2 {[%clk 0:00:06]} 47. g3 {[%clk 0:00:16]}  h5 {[%clk 0:00:05]} 48. Qg2 {[%clk 0:00:16]}  h4 {[%clk 0:00:05]} 49. gxh4 {[%clk 0:00:15]}  Ne4 {[%clk 0:00:04]} 50. Nb4 {[%clk 0:00:14]}  Qf4+ {[%clk 0:00:04]} 51. Kg1 {[%clk 0:00:14]}  Qxh4 {[%clk 0:00:04]} 52. Qg4 {[%clk 0:00:14]}  Qe1+ {[%clk 0:00:04]} 53. Kg2 {[%clk 0:00:14]}  Qf2+ {[%clk 0:00:04]} 54. Kh1 {[%clk 0:00:14]}  Ng3+ {[%clk 0:00:05]} 55. Qxg3 {[%clk 0:00:13]}  Qxg3 {[%clk 0:00:06]} 56. Nc6 {[%clk 0:00:11]}  Qxh3+ {[%clk 0:00:07]} 57. Kg1 {[%clk 0:00:12]}  Qxa3 {[%clk 0:00:07]} 58. Ne7+ {[%clk 0:00:13]}  Kg7 {[%clk 0:00:07]} 59. Nc6 {[%clk 0:00:13]}  Qc5+ {[%clk 0:00:07]} 60. Kf1 {[%clk 0:00:14]}  Qxc4+ {[%clk 0:00:08]} 61. Ke1 {[%clk 0:00:15]}  Qxd5 {[%clk 0:00:08]} 62. Nb4 {[%clk 0:00:15]}  Qa5 {[%clk 0:00:07]} 63. Ke2 {[%clk 0:00:15]}  Qxb4 {[%clk 0:00:08]} 64. Kd3 {[%clk 0:00:16]}  a3 {[%clk 0:00:08]} 65. Kc2 {[%clk 0:00:16]}  a2 {[%clk 0:00:08]} 66. Kd3 {[%clk 0:00:17]}  a1=Q {[%clk 0:00:08]} 67. Ke2 {[%clk 0:00:18]}  Qa2+ {[%clk 0:00:08]} 68. Kd3 {[%clk 0:00:19]}  Qaa3+ {[%clk 0:00:08]} 69. Kc2 {[%clk 0:00:19]}  Qbb2+ {[%clk 0:00:09]} 70. Kd1 {[%clk 0:00:20]}  Qaa1# {[%clk 0:00:10]} 0-1


[Site "https://www.chess.com"]

[Event "Titled Tuesday Blitz August 15 Early 2023"]
[White "Afanasieva, Alexandra"]
[Black "arenal72"]
[WhiteFideId "34126926"]
[WhiteElo "2322"]
[BlackElo "2499"]
[Result "1-0"]
[Round "5"]
[TimeControl "180+1"]
[Date "2023.08.15"]
[WhiteClock "0:00:20"]
[BlackClock "0:01:32"]
[Board "129"]

1. e4 {[%clk 0:03:00]}  d5 {[%clk 0:02:57]} 2. exd5 {[%clk 0:03:00]}  Qxd5 {[%clk 0:02:56]} 3. Nc3 {[%clk 0:03:01]}  Qd6 {[%clk 0:02:56]} 4. d4 {[%clk 0:03:01]}  Nf6 {[%clk 0:02:54]} 5. Nf3 {[%clk 0:03:02]}  g6 {[%clk 0:02:54]} 6. h3 {[%clk 0:03:00]}  Bg7 {[%clk 0:02:54]} 7. Bg5 {[%clk 0:02:59]}  O-O {[%clk 0:02:54]} 8. Qd2 {[%clk 0:03:00]}  a6 {[%clk 0:02:52]} 9. Bd3 {[%clk 0:02:48]}  b5 {[%clk 0:02:48]} 10. O-O {[%clk 0:02:48]}  Bb7 {[%clk 0:02:45]} 11. Qe3 {[%clk 0:02:22]}  b4 {[%clk 0:02:41]} 12. Ne4 {[%clk 0:02:21]}  Nxe4 {[%clk 0:02:34]} 13. Bxe4 {[%clk 0:02:21]}  c6 {[%clk 0:02:23]} 14. c4 {[%clk 0:01:53]}  e6 {[%clk 0:02:12]} 15. Bf4 {[%clk 0:01:42]}  Qe7 {[%clk 0:02:10]} 16. c5 {[%clk 0:01:40]}  Rd8 {[%clk 0:02:04]} 17. Rfd1 {[%clk 0:01:11]}  Nd7 {[%clk 0:02:03]} 18. Bd6 {[%clk 0:01:11]}  Qe8 {[%clk 0:02:01]} 19. Rac1 {[%clk 0:00:52]}  Nf6 {[%clk 0:01:59]} 20. Ne5 {[%clk 0:00:49]}  a5 {[%clk 0:01:52]} 21. Bf3 {[%clk 0:00:46]}  Nd5 {[%clk 0:01:51]} 22. Bxd5 {[%clk 0:00:41]}  exd5 {[%clk 0:01:51]} 23. Re1 {[%clk 0:00:41]}  f6 {[%clk 0:01:47]} 24. Ng4 {[%clk 0:00:20]}  Qxe3 {[%clk 0:01:42]} 25. Rxe3 {[%clk 0:00:20]}  h5 {[%clk 0:01:41]} 26. Nh2 {[%clk 0:00:21]}  Re8 {[%clk 0:01:41]} 27. Rce1 {[%clk 0:00:21]}  Kf7 {[%clk 0:01:39]} 28. Re7+ {[%clk 0:00:20]}  Rxe7 {[%clk 0:01:35]} 29. Rxe7+ {[%clk 0:00:20]}  Kg8 {[%clk 0:01:35]} 30. Rxb7 {[%clk 0:00:21]}  a4 {[%clk 0:01:36]} 31. Rxb4 {[%clk 0:00:21]}  f5 {[%clk 0:01:36]} 32. Be5 {[%clk 0:00:20]}  Bh6 {[%clk 0:01:36]} 33. f4 {[%clk 0:00:20]}  a3 {[%clk 0:01:36]} 34. b3 {[%clk 0:00:20]}  Bf8 {[%clk 0:01:32]} 35. Nf3 {[%clk 0:00:20]} 1-0


[Site "https://www.chess.com"]

[Event "Titled Tuesday Blitz August 15 Early 2023"]
[White "Goswami, Vedant"]
[Black "Baches Garcia, Guillermo"]
[WhiteFideId "5003725"]
[BlackFideId "2209764"]
[WhiteElo "2318"]
[BlackElo "2498"]
[Result "1-0"]
[Round "5"]
[TimeControl "180+1"]
[Date "2023.08.15"]
[WhiteClock "0:00:06"]
[BlackClock "0:00:00"]
[Board "130"]

1. c4 {[%clk 0:03:00]}  e5 {[%clk 0:02:59]} 2. Nc3 {[%clk 0:03:00]}  Nf6 {[%clk 0:03:00]} 3. e4 {[%clk 0:03:00]}  d6 {[%clk 0:02:57]} 4. Nf3 {[%clk 0:02:58]}  Be7 {[%clk 0:02:56]} 5. d4 {[%clk 0:02:53]}  Nbd7 {[%clk 0:02:56]} 6. Be2 {[%clk 0:02:53]}  O-O {[%clk 0:02:56]} 7. O-O {[%clk 0:02:52]}  c6 {[%clk 0:02:56]} 8. Re1 {[%clk 0:02:51]}  Qc7 {[%clk 0:02:52]} 9. d5 {[%clk 0:02:47]}  Nc5 {[%clk 0:02:47]} 10. Qc2 {[%clk 0:02:44]}  a5 {[%clk 0:02:46]} 11. Be3 {[%clk 0:02:37]}  Ng4 {[%clk 0:02:34]} 12. Bd2 {[%clk 0:02:33]}  f5 {[%clk 0:02:32]} 13. Ng5 {[%clk 0:01:55]}  h6 {[%clk 0:02:08]} 14. Bxg4 {[%clk 0:01:41]}  fxg4 {[%clk 0:02:00]} 15. Ne6 {[%clk 0:01:32]}  Nxe6 {[%clk 0:01:56]} 16. dxe6 {[%clk 0:01:32]}  Bxe6 {[%clk 0:01:53]} 17. Na4 {[%clk 0:01:29]}  Rf6 {[%clk 0:01:42]} 18. Be3 {[%clk 0:01:29]}  Raf8 {[%clk 0:01:33]} 19. Bb6 {[%clk 0:01:20]}  Qd7 {[%clk 0:01:32]} 20. Re2 {[%clk 0:01:11]}  Bd8 {[%clk 0:01:29]} 21. Rd1 {[%clk 0:00:53]}  Bxb6 {[%clk 0:01:19]} 22. Nxb6 {[%clk 0:00:52]}  Qc7 {[%clk 0:01:18]} 23. c5 {[%clk 0:00:48]}  dxc5 {[%clk 0:00:58]} 24. Qxc5 {[%clk 0:00:48]}  Qf7 {[%clk 0:00:54]} 25. Rdd2 {[%clk 0:00:42]}  Bxa2 {[%clk 0:00:49]} 26. Nd7 {[%clk 0:00:40]}  Qe6 {[%clk 0:00:28]} 27. Nxf8 {[%clk 0:00:38]}  Rxf8 {[%clk 0:00:28]} 28. Qxa5 {[%clk 0:00:33]}  Bc4 {[%clk 0:00:27]} 29. Re1 {[%clk 0:00:32]}  b5 {[%clk 0:00:27]} 30. Qc7 {[%clk 0:00:27]}  Rf7 {[%clk 0:00:25]} 31. Qd6 {[%clk 0:00:27]}  Qxd6 {[%clk 0:00:16]} 32. Rxd6 {[%clk 0:00:26]}  Ra7 {[%clk 0:00:16]} 33. Rxc6 {[%clk 0:00:18]}  Ra2 {[%clk 0:00:16]} 34. Rd1 {[%clk 0:00:12]}  Rxb2 {[%clk 0:00:16]} 35. h3 {[%clk 0:00:11]}  gxh3 {[%clk 0:00:15]} 36. gxh3 {[%clk 0:00:11]}  Be2 {[%clk 0:00:15]} 37. Rd7 {[%clk 0:00:10]}  Bf3 {[%clk 0:00:10]} 38. Rcc7 {[%clk 0:00:10]}  Bxe4 {[%clk 0:00:11]} 39. Rxg7+ {[%clk 0:00:09]}  Kh8 {[%clk 0:00:11]} 40. Rge7 {[%clk 0:00:09]}  Rb1+ {[%clk 0:00:08]} 41. Kh2 {[%clk 0:00:08]}  Rh1+ {[%clk 0:00:04]} 42. Kg3 {[%clk 0:00:07]}  Rg1+ {[%clk 0:00:04]} 43. Kh4 {[%clk 0:00:07]}  Bh7 {[%clk 0:00:00]} 44. Rxh7+ {[%clk 0:00:06]} 1-0


[Site "https://www.chess.com"]

[Event "Titled Tuesday Blitz August 15 Early 2023"]
[White "Iljin, Timofey"]
[Black "rionelG"]
[WhiteFideId "14110180"]
[WhiteElo "2494"]
[BlackElo "2320"]
[Result "0-1"]
[Round "5"]
[TimeControl "180+1"]
[Date "2023.08.15"]
[WhiteClock "0:00:58"]
[BlackClock "0:00:26"]
[Board "131"]

1. e4 {[%clk 0:02:53]}  c5 {[%clk 0:00:56]} 2. c3 {[%clk 0:02:52]}  d5 {[%clk 0:00:56]} 3. exd5 {[%clk 0:02:50]}  Qxd5 {[%clk 0:00:56]} 4. d4 {[%clk 0:02:51]}  Nc6 {[%clk 0:00:57]} 5. Nf3 {[%clk 0:02:51]}  Nf6 {[%clk 0:00:57]} 6. Be2 {[%clk 0:02:51]}  cxd4 {[%clk 0:00:57]} 7. cxd4 {[%clk 0:02:52]}  e6 {[%clk 0:00:58]} 8. O-O {[%clk 0:02:52]}  Be7 {[%clk 0:00:58]} 9. Nc3 {[%clk 0:02:53]}  Qd6 {[%clk 0:00:58]} 10. h3 {[%clk 0:02:53]}  O-O {[%clk 0:00:58]} 11. Be3 {[%clk 0:02:50]}  Nb4 {[%clk 0:00:58]} 12. a3 {[%clk 0:02:48]}  Nbd5 {[%clk 0:00:58]} 13. Qb3 {[%clk 0:02:26]}  b6 {[%clk 0:00:56]} 14. Ne5 {[%clk 0:02:22]}  Bb7 {[%clk 0:00:55]} 15. Bf3 {[%clk 0:02:21]}  Rac8 {[%clk 0:00:54]} 16. Rac1 {[%clk 0:02:19]}  Rfd8 {[%clk 0:00:51]} 17. Ne4 {[%clk 0:02:01]}  Nxe4 {[%clk 0:00:46]} 18. Bxe4 {[%clk 0:02:02]}  Ba8 {[%clk 0:00:42]} 19. Bd2 {[%clk 0:01:33]}  g6 {[%clk 0:00:40]} 20. Qf3 {[%clk 0:01:22]}  Bf6 {[%clk 0:00:38]} 21. Bxd5 {[%clk 0:01:20]}  Bxe5 {[%clk 0:00:38]} 22. Rxc8 {[%clk 0:01:06]}  Bxd5 {[%clk 0:00:32]} 23. Rxd8+ {[%clk 0:01:04]}  Qxd8 {[%clk 0:00:33]} 24. Qg4 {[%clk 0:00:58]}  Bb8 {[%clk 0:00:29]} 25. Bg5 {[%clk 0:00:58]}  Qd6 {[%clk 0:00:27]} 26. Bf6 {[%clk 0:00:58]}  Qh2# {[%clk 0:00:26]} 0-1


[Site "https://www.chess.com"]

[Event "Titled Tuesday Blitz August 15 Early 2023"]
[White "Mikhaylova, Irina"]
[Black "Eidelman, Gabriel"]
[WhiteFideId "4109040"]
[BlackFideId "30910544"]
[WhiteElo "2301"]
[BlackElo "2491"]
[Result "1-0"]
[Round "5"]
[TimeControl "180+1"]
[Date "2023.08.15"]
[WhiteClock "0:02:51"]
[BlackClock "0:00:00"]
[Board "133"]

1. d4 {[%clk 0:02:59]}  g6 {[%clk 0:00:05]} 2. Nf3 {[%clk 0:02:56]}  Bg7 {[%clk 0:00:05]} 3. c4 {[%clk 0:02:56]}  Nf6 {[%clk 0:00:06]} 4. Nc3 {[%clk 0:02:57]}  O-O {[%clk 0:00:06]} 5. e4 {[%clk 0:02:57]}  d6 {[%clk 0:00:07]} 6. Be2 {[%clk 0:02:57]}  e5 {[%clk 0:00:08]} 7. dxe5 {[%clk 0:02:57]}  dxe5 {[%clk 0:00:08]} 8. Qxd8 {[%clk 0:02:58]}  Rxd8 {[%clk 0:00:09]} 9. Bg5 {[%clk 0:02:58]}  Re8 {[%clk 0:00:08]} 10. Nd5 {[%clk 0:02:58]}  Nxd5 {[%clk 0:00:08]} 11. cxd5 {[%clk 0:02:58]}  c6 {[%clk 0:00:06]} 12. Bc4 {[%clk 0:02:58]}  cxd5 {[%clk 0:00:04]} 13. Bxd5 {[%clk 0:02:59]}  Nc6 {[%clk 0:00:02]} 14. O-O-O {[%clk 0:02:58]}  Be6 {[%clk 0:00:02]} 15. Bxe6 {[%clk 0:02:58]}  Rxe6 {[%clk 0:00:03]} 16. Rd7 {[%clk 0:02:58]}  Rc8 {[%clk 0:00:01]} 17. Kb1 {[%clk 0:02:58]}  Nd4 {[%clk 0:00:00]} 18. Rxb7 {[%clk 0:02:51]} 1-0


[Site "https://www.chess.com"]

[Event "Titled Tuesday Blitz August 15 Early 2023"]
[White "Zaichenko, Daria"]
[Black "Dias, Paulo"]
[WhiteFideId "4197453"]
[BlackFideId "1900803"]
[WhiteElo "2229"]
[BlackElo "2480"]
[Result "0-1"]
[Round "5"]
[TimeControl "180+1"]
[Date "2023.08.15"]
[WhiteClock "0:01:36"]
[BlackClock "0:01:17"]
[Board "137"]

1. e4 {[%clk 0:03:00]}  e5 {[%clk 0:02:56]} 2. Nf3 {[%clk 0:03:00]}  Nc6 {[%clk 0:02:56]} 3. Bc4 {[%clk 0:02:58]}  Bc5 {[%clk 0:02:55]} 4. d3 {[%clk 0:02:58]}  Nf6 {[%clk 0:02:54]} 5. O-O {[%clk 0:02:58]}  a6 {[%clk 0:02:53]} 6. Re1 {[%clk 0:02:53]}  h6 {[%clk 0:02:45]} 7. c3 {[%clk 0:02:52]}  Ba7 {[%clk 0:02:39]} 8. d4 {[%clk 0:02:45]}  d6 {[%clk 0:01:37]} 9. dxe5 {[%clk 0:02:42]}  Ng4 {[%clk 0:01:33]} 10. Rf1 {[%clk 0:02:26]}  Ngxe5 {[%clk 0:01:33]} 11. Nxe5 {[%clk 0:02:26]}  Nxe5 {[%clk 0:01:31]} 12. Bb3 {[%clk 0:02:24]}  O-O {[%clk 0:01:28]} 13. h3 {[%clk 0:02:16]}  Qh4 {[%clk 0:01:23]} 14. Qe2 {[%clk 0:01:43]}  Bxh3 {[%clk 0:01:18]} 15. gxh3 {[%clk 0:01:43]}  Qg3+ {[%clk 0:01:17]} 16. Kh1 {[%clk 0:01:42]}  Qxh3+ {[%clk 0:01:17]} 17. Kg1 {[%clk 0:01:41]}  Nf3+ {[%clk 0:01:17]} 18. Qxf3 {[%clk 0:01:41]}  Qxf3 {[%clk 0:01:18]} 19. Nd2 {[%clk 0:01:36]}  Qg3+ {[%clk 0:01:17]} 20. Kh1 {[%clk 0:01:36]}  Bxf2 {[%clk 0:01:17]} 0-1


[Site "https://www.chess.com"]

[Event "Titled Tuesday Blitz August 15 Early 2023"]
[White "Pert, Nina"]
[Black "Pandey Srishti"]
[WhiteFideId "456853"]
[BlackFideId "35093290"]
[WhiteElo "2199"]
[BlackElo "2479"]
[Result "0-1"]
[Round "5"]
[TimeControl "180+1"]
[Date "2023.08.15"]
[WhiteClock "0:00:01"]
[BlackClock "0:00:38"]
[Board "138"]

1. e4 {[%clk 0:03:00]}  e5 {[%clk 0:02:55]} 2. Nf3 {[%clk 0:02:59]}  Nc6 {[%clk 0:02:55]} 3. Bc4 {[%clk 0:02:58]}  Bc5 {[%clk 0:02:55]} 4. c3 {[%clk 0:02:56]}  Nf6 {[%clk 0:02:53]} 5. d4 {[%clk 0:02:55]}  exd4 {[%clk 0:02:54]} 6. e5 {[%clk 0:02:54]}  d5 {[%clk 0:02:54]} 7. Bb5 {[%clk 0:02:53]}  Ne4 {[%clk 0:02:54]} 8. cxd4 {[%clk 0:02:53]}  Bb6 {[%clk 0:02:54]} 9. O-O {[%clk 0:02:46]}  O-O {[%clk 0:02:51]} 10. Nc3 {[%clk 0:02:45]}  Bg4 {[%clk 0:02:50]} 11. h3 {[%clk 0:02:41]}  Bh5 {[%clk 0:02:45]} 12. Bxc6 {[%clk 0:02:33]}  bxc6 {[%clk 0:02:45]} 13. Be3 {[%clk 0:02:32]}  Rb8 {[%clk 0:02:43]} 14. Qc2 {[%clk 0:02:26]}  Bxf3 {[%clk 0:02:42]} 15. gxf3 {[%clk 0:02:27]}  Ng5 {[%clk 0:02:42]} 16. Kg2 {[%clk 0:02:22]}  f5 {[%clk 0:02:41]} 17. f4 {[%clk 0:02:13]}  Ne6 {[%clk 0:02:41]} 18. Rad1 {[%clk 0:02:11]}  Qh4 {[%clk 0:02:41]} 19. Ne2 {[%clk 0:02:03]}  Qh6 {[%clk 0:02:38]} 20. Kh2 {[%clk 0:01:58]}  Nd8 {[%clk 0:02:32]} 21. Rg1 {[%clk 0:01:55]}  Kh8 {[%clk 0:02:32]} 22. Rg3 {[%clk 0:01:50]}  Rf7 {[%clk 0:02:17]} 23. Rdg1 {[%clk 0:01:47]}  Qe6 {[%clk 0:02:16]} 24. R1g2 {[%clk 0:01:36]}  Qd7 {[%clk 0:02:12]} 25. Ng1 {[%clk 0:01:34]}  Ne6 {[%clk 0:02:12]} 26. Nf3 {[%clk 0:01:34]}  Rbf8 {[%clk 0:02:03]} 27. Ng5 {[%clk 0:01:17]}  Nxd4 {[%clk 0:01:44]} 28. Bxd4 {[%clk 0:01:16]}  Bxd4 {[%clk 0:01:44]} 29. Nxf7+ {[%clk 0:01:16]}  Rxf7 {[%clk 0:01:43]} 30. Rd3 {[%clk 0:01:06]}  Bb6 {[%clk 0:01:34]} 31. Qe2 {[%clk 0:01:03]}  Qe6 {[%clk 0:01:34]} 32. Rdg3 {[%clk 0:00:49]}  g6 {[%clk 0:01:34]} 33. Rg1 {[%clk 0:00:43]}  c5 {[%clk 0:01:31]} 34. Rc1 {[%clk 0:00:42]}  c4 {[%clk 0:01:31]} 35. b3 {[%clk 0:00:40]}  cxb3 {[%clk 0:01:29]} 36. Rxb3 {[%clk 0:00:40]}  Re7 {[%clk 0:01:26]} 37. a4 {[%clk 0:00:36]}  d4 {[%clk 0:01:22]} 38. Rb5 {[%clk 0:00:32]}  c6 {[%clk 0:01:20]} 39. Rb2 {[%clk 0:00:29]}  Qd5 {[%clk 0:01:19]} 40. Qc4 {[%clk 0:00:24]}  Qf3 {[%clk 0:01:11]} 41. Qxc6 {[%clk 0:00:13]}  Qxf4+ {[%clk 0:01:10]} 42. Kg1 {[%clk 0:00:13]}  Rxe5 {[%clk 0:01:02]} 43. a5 {[%clk 0:00:12]}  Rxa5 {[%clk 0:00:57]} 44. Qc8+ {[%clk 0:00:11]}  Kg7 {[%clk 0:00:57]} 45. Rxb6 {[%clk 0:00:06]}  axb6 {[%clk 0:00:50]} 46. Rc7+ {[%clk 0:00:06]}  Kh6 {[%clk 0:00:49]} 47. Qf8+ {[%clk 0:00:06]}  Kg5 {[%clk 0:00:48]} 48. Qe7+ {[%clk 0:00:06]}  Kh5 {[%clk 0:00:46]} 49. Qxh7+ {[%clk 0:00:06]}  Qh6 {[%clk 0:00:46]} 50. Qxh6+ {[%clk 0:00:05]}  Kxh6 {[%clk 0:00:47]} 51. Rd7 {[%clk 0:00:06]}  Ra4 {[%clk 0:00:45]} 52. Rd5 {[%clk 0:00:05]}  Rb4 {[%clk 0:00:44]} 53. Kf1 {[%clk 0:00:05]}  Kg5 {[%clk 0:00:45]} 54. Ke2 {[%clk 0:00:05]}  Kf4 {[%clk 0:00:44]} 55. Rd6 {[%clk 0:00:04]}  g5 {[%clk 0:00:44]} 56. Rh6 {[%clk 0:00:02]}  Rb2+ {[%clk 0:00:42]} 57. Kd3 {[%clk 0:00:03]}  Rxf2 {[%clk 0:00:42]} 58. Kxd4 {[%clk 0:00:03]}  b5 {[%clk 0:00:41]} 59. Rb6 {[%clk 0:00:03]}  Rb2 {[%clk 0:00:41]} 60. Rh6 {[%clk 0:00:02]}  b4 {[%clk 0:00:41]} 61. Kc4 {[%clk 0:00:02]}  Rb1 {[%clk 0:00:40]} 62. Rb6 {[%clk 0:00:02]}  b3 {[%clk 0:00:38]} 63. Rg6 {[%clk 0:00:02]}  b2 {[%clk 0:00:38]} 64. Kc3 {[%clk 0:00:02]}  Rh1 {[%clk 0:00:36]} 65. Kxb2 {[%clk 0:00:02]}  Rxh3 {[%clk 0:00:37]} 66. Ra6 {[%clk 0:00:02]}  g4 {[%clk 0:00:36]} 67. Ra4+ {[%clk 0:00:03]}  Kg5 {[%clk 0:00:36]} 68. Kc2 {[%clk 0:00:03]}  Rf3 {[%clk 0:00:36]} 69. Kd2 {[%clk 0:00:04]}  g3 {[%clk 0:00:37]} 70. Ke2 {[%clk 0:00:04]}  Rf2+ {[%clk 0:00:37]} 71. Ke1 {[%clk 0:00:04]}  f4 {[%clk 0:00:37]} 72. Ra8 {[%clk 0:00:04]}  Kg4 {[%clk 0:00:37]} 73. Rg8+ {[%clk 0:00:03]}  Kf3 {[%clk 0:00:37]} 74. Rg7 {[%clk 0:00:03]}  Re2+ {[%clk 0:00:38]} 75. Kf1 {[%clk 0:00:03]}  g2+ {[%clk 0:00:37]} 76. Kg1 {[%clk 0:00:02]}  Re1+ {[%clk 0:00:37]} 77. Kh2 {[%clk 0:00:01]}  Rh1# {[%clk 0:00:38]} 0-1


[Site "https://www.chess.com"]

[Event "Titled Tuesday Blitz August 15 Early 2023"]
[White "Shuvalov, Evgenij"]
[Black "le-castor-faineant"]
[WhiteFideId "4187237"]
[WhiteElo "2473"]
[BlackElo "2192"]
[Result "1-0"]
[Round "5"]
[TimeControl "180+1"]
[Date "2023.08.15"]
[WhiteClock "0:00:37"]
[BlackClock "0:00:00"]
[Board "139"]

1. d4 {[%clk 0:03:00]}  Nf6 {[%clk 0:02:56]} 2. c4 {[%clk 0:03:00]}  g6 {[%clk 0:02:56]} 3. Nc3 {[%clk 0:02:59]}  Bg7 {[%clk 0:02:56]} 4. e4 {[%clk 0:03:00]}  d6 {[%clk 0:02:57]} 5. Nf3 {[%clk 0:03:00]}  O-O {[%clk 0:02:57]} 6. Be2 {[%clk 0:03:01]}  Nc6 {[%clk 0:02:57]} 7. O-O {[%clk 0:03:01]}  e5 {[%clk 0:02:57]} 8. d5 {[%clk 0:03:00]}  Ne7 {[%clk 0:02:58]} 9. Ne1 {[%clk 0:02:54]}  Ne8 {[%clk 0:02:57]} 10. f3 {[%clk 0:02:52]}  f5 {[%clk 0:02:57]} 11. g4 {[%clk 0:02:52]}  f4 {[%clk 0:02:52]} 12. h4 {[%clk 0:02:52]}  h5 {[%clk 0:02:45]} 13. g5 {[%clk 0:02:51]}  c5 {[%clk 0:02:38]} 14. Rf2 {[%clk 0:02:48]}  Bd7 {[%clk 0:02:33]} 15. Bf1 {[%clk 0:02:47]}  Nc7 {[%clk 0:02:30]} 16. Rb1 {[%clk 0:02:45]}  a5 {[%clk 0:02:27]} 17. b3 {[%clk 0:02:42]}  Qb8 {[%clk 0:02:21]} 18. a3 {[%clk 0:02:37]}  b5 {[%clk 0:02:20]} 19. cxb5 {[%clk 0:02:36]}  Nxb5 {[%clk 0:02:20]} 20. Nxb5 {[%clk 0:02:35]}  Bxb5 {[%clk 0:02:21]} 21. Bxb5 {[%clk 0:02:35]}  Qxb5 {[%clk 0:02:21]} 22. a4 {[%clk 0:02:25]}  Qd7 {[%clk 0:02:10]} 23. Nd3 {[%clk 0:02:18]}  Rfb8 {[%clk 0:02:10]} 24. Nb2 {[%clk 0:02:16]}  Qh3 {[%clk 0:01:32]} 25. Rh2 {[%clk 0:02:16]}  Qg3+ {[%clk 0:01:32]} 26. Rg2 {[%clk 0:01:47]}  Qxh4 {[%clk 0:01:29]} 27. Nc4 {[%clk 0:01:46]}  Nc8 {[%clk 0:01:28]} 28. Bd2 {[%clk 0:01:44]}  Bf8 {[%clk 0:01:02]} 29. Bxa5 {[%clk 0:01:37]}  Be7 {[%clk 0:01:01]} 30. Be1 {[%clk 0:01:34]}  Qh3 {[%clk 0:01:01]} 31. b4 {[%clk 0:01:18]}  cxb4 {[%clk 0:00:50]} 32. Rxb4 {[%clk 0:01:19]}  Rxb4 {[%clk 0:00:49]} 33. Bxb4 {[%clk 0:01:20]}  Rb8 {[%clk 0:00:39]} 34. Ba3 {[%clk 0:01:08]}  Qd7 {[%clk 0:00:18]} 35. a5 {[%clk 0:00:55]}  Qb5 {[%clk 0:00:13]} 36. Rb2 {[%clk 0:00:51]}  Qxc4 {[%clk 0:00:03]} 37. Rxb8 {[%clk 0:00:51]}  Kf7 {[%clk 0:00:02]} 38. Qf1 {[%clk 0:00:41]}  Qd4+ {[%clk 0:00:01]} 39. Kh1 {[%clk 0:00:40]}  Na7 {[%clk 0:00:00]} 40. Rb7 {[%clk 0:00:37]} 1-0


[Site "https://www.chess.com"]

[Event "Titled Tuesday Blitz August 15 Early 2023"]
[White "Molenda, Marcin"]
[Black "Seifert, Henryk"]
[WhiteFideId "1173065"]
[BlackFideId "1100963"]
[WhiteElo "2466"]
[BlackElo "2076"]
[Result "1-0"]
[Round "5"]
[TimeControl "180+1"]
[Date "2023.08.15"]
[WhiteClock "0:01:08"]
[BlackClock "0:00:19"]
[Board "140"]

1. e4 {[%clk 0:03:00]}  e6 {[%clk 0:02:59]} 2. Nf3 {[%clk 0:02:55]}  d5 {[%clk 0:02:58]} 3. e5 {[%clk 0:02:55]}  c5 {[%clk 0:02:57]} 4. c3 {[%clk 0:02:55]}  Nc6 {[%clk 0:02:57]} 5. a3 {[%clk 0:02:52]}  Bd7 {[%clk 0:02:47]} 6. d4 {[%clk 0:02:44]}  cxd4 {[%clk 0:02:38]} 7. cxd4 {[%clk 0:02:43]}  Qb6 {[%clk 0:02:37]} 8. Nc3 {[%clk 0:02:41]}  Rc8 {[%clk 0:02:32]} 9. Be2 {[%clk 0:02:24]}  Na5 {[%clk 0:02:19]} 10. O-O {[%clk 0:02:24]}  Nb3 {[%clk 0:02:09]} 11. Rb1 {[%clk 0:02:24]}  Ne7 {[%clk 0:01:52]} 12. Bg5 {[%clk 0:02:09]}  Nf5 {[%clk 0:01:44]} 13. g4 {[%clk 0:02:07]}  Nfxd4 {[%clk 0:01:22]} 14. Nxd4 {[%clk 0:02:01]}  Nxd4 {[%clk 0:01:21]} 15. Bd3 {[%clk 0:02:02]}  Nc6 {[%clk 0:01:06]} 16. Kh1 {[%clk 0:02:01]}  Nxe5 {[%clk 0:01:01]} 17. Bc2 {[%clk 0:02:01]}  Bc6 {[%clk 0:00:50]} 18. f3 {[%clk 0:01:47]}  Nc4 {[%clk 0:00:29]} 19. Qe2 {[%clk 0:01:40]}  Bd6 {[%clk 0:00:26]} 20. h4 {[%clk 0:01:22]}  O-O {[%clk 0:00:25]} 21. h5 {[%clk 0:01:19]}  Rce8 {[%clk 0:00:22]} 22. Qd3 {[%clk 0:01:10]}  Ne5 {[%clk 0:00:19]} 23. Qxh7# {[%clk 0:01:08]} 1-0


[Site "https://www.chess.com"]